bitfinex-derivatives/quotes_SOLF0:USTF0_20260215
["timestamp","ask_amount","ask_price","bid_price","bid_amount"]
[1771138081609,3.79084892,89.627,89.564,10.0521]
[1771138081815,3.79084892,89.627,89.565,1.91998047]
[1771138082217,3.79084892,89.624,89.557,10.0529]
[1771138082417,3.79084892,89.619,89.535,1.91998047]
[1771138082819,3.79084892,89.599,89.521,1.91131452]
[1771138083514,3.79084892,89.576,89.521,1.91131452]
[1771138085219,3.79084892,89.594,89.531,1.84848862]
[1771138085413,3.79084892,89.594,89.541,1.84848862]
[1771138086217,3.79084892,89.594,89.547,1.84848862]
[1771138086614,3.79084892,89.61,89.563,11.89154749]
[1771138089621,3.79084892,89.607,89.513,1.61622086]
[1771138089829,3.79084892,89.607,89.521,1.61622086]
[1771138090427,94.82701613,89.63,89.521,1.61622086]
[1771138090428,3.79084892,89.605,89.54,10.0548]
[1771138090725,3.79084892,89.589,89.521,1.61622086]
[1771138091818,3.79084892,89.587,89.527,10.0563]
[1771138092828,3.79084892,89.583,89.521,1.61622086]
[1771138094331,3.79084892,89.583,89.532,2.41804468]
[1771138094528,10.0478,89.603,89.532,2.41804468]
[1771138094529,3.87655688,89.602,89.532,2.41804468]
[1771138094724,3.87655688,89.629,89.557,2.55725011]
[1771138094934,3.87655688,89.629,89.561,2.55725011]
[1771138095125,3.87655688,89.669,89.561,2.55725011]
[1771138095324,3.87655688,89.669,89.601,2.55725011]
[1771138095727,3.87655688,89.669,89.581,2.55725011]
[1771138096126,3.87655688,89.654,89.585,10.0497]
[1771138097332,3.87655688,89.654,89.581,2.55725011]
[1771138097333,3.87655688,89.654,89.601,10.0479]
[1771138099030,3.87655688,89.654,89.611,10.0468]
[1771138099332,3.87655688,89.654,89.602,2.55844863]
[1771138099333,3.87655688,89.683,89.602,2.55844863]
[1771138099635,3.87655688,89.681,89.607,10.0472]
[1771138100937,3.87655688,89.678,89.595,10.0486]
[1771138101732,3.87655688,89.678,89.596,2.53993248]
[1771138101929,3.87655688,89.665,89.599,10.0481]
[1771138103435,3.87655688,89.663,89.596,2.53993248]
[1771138104837,88.86,89.683,89.596,2.53993248]
[1771138104838,3.87655688,89.656,89.596,2.53993248]
[1771138107239,3.87655688,89.654,89.575,10.0509]
[1771138107839,3.87655688,89.654,89.581,2.56412335]
[1771138109940,3.87655688,89.654,89.589,2.55982428]
[1771138111741,3.87655688,89.654,89.601,10.048]
[1771138112137,3.87655688,89.654,89.589,2.55982428]
[1771138112339,3.87655688,89.654,89.572,2.54351301]
[1771138113541,3.87655688,89.638,89.578,10.0506]
[1771138113940,3.87655688,89.655,89.593,2.54455213]
[1771138114745,3.87655688,89.655,89.595,10.0486]
[1771138117135,3.87655688,89.652,89.595,10.0486]
[1771138118043,3.87655688,89.649,89.585,10.0497]
[1771138118637,3.87655688,89.646,89.585,10.0497]
[1771138118849,3.87655688,89.639,89.575,10.0508]
[1771138119741,3.87655688,89.629,89.575,10.0508]
[1771138120445,3.87655688,89.665,89.606,10.0474]
[1771138121037,3.87655688,89.665,89.606,12.49326262]
[1771138121244,3.87655688,89.665,89.59,5.9756615]
[1771138121245,3.87655688,89.665,89.616,10.0462]
[1771138121646,3.87655688,89.665,89.607,2.44586262]
[1771138122146,3.57700051,89.656,89.562,2.45026856]
[1771138123753,3.77395313,89.647,89.583,10.05]
[1771138124751,3.77395313,89.644,89.583,10.05]
[1771138125950,3.77395313,89.635,89.58,2.32066191]
[1771138126347,3.77395313,89.635,89.573,10.0511]
[1771138126747,3.77395313,89.632,89.573,10.0511]
[1771138126946,3.77395313,89.632,89.564,2.33649918]
[1771138127745,3.77395313,89.627,89.564,2.33649918]
[1771138128351,3.77395313,89.624,89.564,2.33649918]
[1771138128747,3.77395313,89.624,89.553,10.0533]
[1771138129148,3.77395313,89.624,89.554,2.44027634]
[1771138129749,3.77395313,89.624,89.583,10.0499]
[1771138131747,3.77395313,89.642,89.594,2.42709928]
[1771138131952,3.77395313,89.658,89.594,2.42709928]
[1771138132856,3.77395313,89.653,89.596,10.0485]
[1771138133455,3.77395313,89.648,89.571,2.36200353]
[1771138134752,3.77395313,89.637,89.577,10.0507]
[1771138134954,3.77395313,89.637,89.571,2.36200353]
[1771138135650,3.77395313,89.646,89.573,2.31280644]
[1771138137765,3.77395313,89.633,89.572,10.0511]
[1771138138457,3.77395313,89.617,89.557,2.30714808]
[1771138138656,3.77395313,89.589,89.52,2.30683713]
[1771138138855,3.77395313,89.589,89.502,2.30683713]
[1771138139759,5.9756615,89.59,89.508,2.30683713]
[1771138139760,13.82545313,89.57,89.508,2.30683713]
[1771138140851,3.77395313,89.569,89.508,2.30683713]
[1771138141459,3.77395313,89.567,89.508,2.30683713]
[1771138142265,3.77395313,89.564,89.508,2.30683713]
[1771138142963,88.88,89.594,89.493,10.0601]
[1771138142964,3.77395313,89.562,89.493,10.0601]
[1771138143263,3.77395313,89.562,89.491,2.29222172]
[1771138143661,3.77395313,89.549,89.491,2.29222172]
[1771138145863,3.77395313,89.549,89.492,2.3261746]
[1771138147267,10.052,89.566,89.495,2.29954405]
[1771138147458,3.77395313,89.571,89.495,2.29954405]
[1771138148058,3.77395313,89.569,89.495,2.29954405]
[1771138149258,3.77395313,89.559,89.495,2.29954405]
[1771138149661,3.77395313,89.559,89.476,2.30247786]
[1771138149864,5.9756615,89.57,89.476,2.30247786]
[1771138149865,3.77395313,89.549,89.476,2.30247786]
[1771138150864,3.77395313,89.542,89.476,2.30247786]
[1771138152161,3.77395313,89.535,89.476,2.30247786]
[1771138152357,3.77395313,89.535,89.466,10.0631]
[1771138152862,3.77395313,89.535,89.467,2.32246218]
[1771138153768,3.58806216,89.531,89.467,2.32246218]
[1771138154371,3.58806216,89.531,89.469,10.0628]
[1771138155469,3.58806216,89.529,89.469,10.0628]
[1771138157371,3.58806216,89.523,89.467,2.32246218]
[1771138157570,3.58806216,89.523,89.457,10.0641]
[1771138157971,3.58806216,89.52,89.452,2.36710816]
[1771138158468,3.58806216,89.52,89.434,2.36710816]
[1771138158670,3.58806216,89.52,89.446,2.36710816]
[1771138159872,3.58806216,89.518,89.452,2.3662488]
[1771138160572,3.58806216,89.514,89.452,2.3662488]
[1771138160976,3.58806216,89.514,89.43,5.9756615]
[1771138160977,3.58806216,89.514,89.46,2.42476799]
[1771138163375,3.58806216,89.512,89.448,10.0652]
[1771138164779,5.9756615,89.54,89.448,10.0652]
[1771138164780,3.58806216,89.51,89.448,10.0652]
[1771138166778,3.58806216,89.507,89.445,2.45251223]
[1771138167280,3.58806216,89.499,89.445,2.45251223]
[1771138168782,3.58806216,89.497,89.445,2.45251223]
[1771138180687,3.58806216,89.493,89.445,2.45251223]
[1771138182289,3.58806216,89.493,89.448,2.47666836]
[1771138182882,3.58806216,89.493,89.422,350.92070091]
[1771138183086,3.58806216,89.493,89.435,2.51024326]
[1771138183290,3.58806216,89.493,89.422,239.91286047]
[1771138183588,5.99608352,89.51,89.4,5.99608352]
[1771138183589,3.80618926,89.489,89.401,2.51215956]
[1771138183790,3.80618926,89.471,89.406,2.5123624]
[1771138184589,3.80618926,89.467,89.406,2.5123624]
[1771138185185,3.80618926,89.465,89.406,2.5123624]
[1771138186495,3.80618926,89.462,89.393,2.53491409]
[1771138186997,3.80618926,89.462,89.397,3.334e-05]
[1771138186998,3.80618926,89.419,89.397,3.334e-05]
[1771138187191,156.5122,89.482,89.397,3.334e-05]
[1771138187192,2.24275112,89.43,89.397,3.334e-05]
[1771138187392,3.80618926,89.419,89.397,3.334e-05]
[1771138188091,2.24275112,89.41,89.397,3.334e-05]
[1771138188298,2.24275112,89.41,89.33,2.24275112]
[1771138188299,3.80618926,89.408,89.33,2.24275112]
[1771138188494,3.80618926,89.389,89.35,2.24275112]
[1771138188694,3.80618926,89.404,89.35,4.66026738]
[1771138189101,2.24275112,89.4,89.35,2.41751626]
[1771138189292,3.80618926,89.389,89.335,2.41751626]
[1771138190092,3.80618926,89.389,89.34,2.24275112]
[1771138190294,88.92,89.417,89.311,2.41751626]
[1771138190295,3.80618926,89.369,89.311,2.41751626]
[1771138190495,3.80618926,89.369,89.31,2.24275112]
[1771138190695,3.80618926,89.359,89.305,2.41751626]
[1771138190897,3.80618926,89.349,89.29,2.55377482]
[1771138191090,2.24275112,89.36,89.31,2.24275112]
[1771138191297,2.24275112,89.36,89.311,2.55377482]
[1771138191589,2.24275112,89.37,89.32,4.79652594]
[1771138191790,3.80618926,89.375,89.32,4.79652594]
[1771138191996,3.80618926,89.375,89.33,2.24275112]
[1771138192197,3.80618926,89.392,89.321,2.55377482]
[1771138192395,3.80618926,89.379,89.321,2.55377482]
[1771138194807,3.80618926,89.376,89.305,2.37191139]
[1771138195492,3.80618926,89.376,89.306,2.37191139]
[1771138195996,3.80618926,89.376,89.308,10.0809]
[1771138196195,3.80618926,89.376,89.309,2.37191139]
[1771138197798,3.80618926,89.376,89.311,2.33889649]
[1771138198698,3.80618926,89.376,89.313,2.33910009]
[1771138199496,3.80618926,89.376,89.318,2.33910009]
[1771138200198,3.80618926,89.393,89.322,2.33910009]
[1771138200603,3.80618926,89.408,89.322,2.33910009]
[1771138200799,3.80618926,89.399,89.329,2.55445429]
[1771138201402,3.80618926,89.396,89.329,2.55445429]
[1771138201708,3.80618926,89.379,89.301,2.55445429]
[1771138202206,3.80618926,89.379,89.314,2.55445429]
[1771138202704,3.80618926,89.377,89.314,2.55445429]
[1771138203703,3.80618926,89.377,89.245,156.9259]
[1771138203704,3.80618926,89.372,89.296,2.53006549]
[1771138205105,10.075,89.362,89.299,10.0819]
[1771138205301,3.80618926,89.372,89.3,2.51245846]
[1771138206010,3.80618926,89.372,89.303,2.51245846]
[1771138207208,3.80618926,89.372,89.305,2.5154072]
[1771138207413,3.80618926,89.399,89.321,2.5154072]
[1771138208004,3.80618926,89.397,89.332,2.5154072]
[1771138208604,3.80618926,89.393,89.332,2.5154072]
[1771138209412,3.80618926,89.429,89.341,2.50687378]
[1771138210500,3.80618926,89.426,89.356,2.50687378]
[1771138210704,3.80618926,89.426,89.361,2.52899282]
[1771138211807,3.80618926,89.426,89.369,10.074]
[1771138212002,3.80618926,89.426,89.361,2.52899282]
[1771138212304,3.80618926,89.426,89.362,10.0748]
[1771138212503,3.80618926,89.426,89.363,2.52899282]
[1771138213105,3.80618926,89.426,89.364,10.0746]
[1771138213616,3.80618926,89.426,89.365,2.52316735]
[1771138214312,3.7561793,89.425,89.365,2.52316735]
[1771138215310,3.7561793,89.425,89.368,2.5169448]
[1771138215710,145.6761793,89.441,89.368,2.5169448]
[1771138215911,3.7561793,89.44,89.368,2.5169448]
[1771138216207,3.7561793,89.44,89.381,10.0726]
[1771138217110,3.7561793,89.438,89.368,2.5169448]
[1771138218413,3.7561793,89.435,89.371,10.0738]
[1771138218614,3.7561793,89.435,89.368,2.5169448]
[1771138219811,3.7561793,89.433,89.368,2.5169448]
[1771138222414,3.7561793,89.433,89.37,2.55145857]
[1771138223817,3.7561793,89.445,89.37,2.55145857]
[1771138224516,3.7561793,89.443,89.373,2.55145857]
[1771138225821,3.7561793,89.43,89.373,2.55145857]
[1771138228620,3.7561793,89.43,89.376,2.55145857]
[1771138229116,3.7561793,89.43,89.38,2.55145857]
[1771138229721,3.7561793,89.443,89.38,2.55145857]
[1771138230524,141.64,89.446,89.38,2.55145857]
[1771138230525,141.64,89.446,89.384,2.55145857]
[1771138230726,141.64,89.446,89.401,2.55145857]
[1771138231818,141.64,89.446,89.415,10.0688]
[1771138233519,141.64,89.446,89.416,2.55145857]
[1771138235025,132.41800001,89.446,89.416,2.55145857]
[1771138237635,65.45080001,89.446,89.423,2.55145857]
[1771138237834,8.22400001,89.446,89.423,2.55145857]
[1771138238031,1e-08,89.446,89.423,2.55145857]
[1771138238733,1e-08,89.446,89.407,2.55145857]
[1771138240737,1e-08,89.446,89.41,2.55145857]
[1771138240934,1e-08,89.446,89.41,4.79159672]
[1771138241133,1e-08,89.446,89.411,2.55145857]
[1771138241737,1e-08,89.446,89.412,10.0692]
[1771138243437,1e-08,89.446,89.412,12.61542249]
[1771138244136,1e-08,89.446,89.413,2.54592874]
[1771138244437,1e-08,89.446,89.415,2.54592874]
[1771138250843,1e-08,89.446,89.416,10.0688]
[1771138251140,1e-08,89.446,89.416,12.61472874]
[1771138252745,1e-08,89.446,89.416,10.0688]
[1771138257445,2.24013815,89.44,89.401,2.54592874]
[1771138257748,3.56986973,89.429,89.388,2.54592874]
[1771138258441,2.24013815,89.4,89.357,2.54592874]
[1771138260048,3.56986973,89.409,89.36,10.075]
[1771138260242,3.56986973,89.409,89.361,2.54592874]
[1771138260448,1e-08,89.446,89.297,54.73347734]
[1771138260449,5.81000788,89.43,89.381,2.54592874]
[1771138260646,3.56986973,89.429,89.381,2.54592874]
[1771138260846,2.24013815,89.42,89.381,2.54592874]
[1771138261050,3.56986973,89.409,89.365,2.54592874]
[1771138261244,2.24013815,89.4,89.365,2.54592874]
[1771138261649,3.56986973,89.409,89.365,2.54592874]
[1771138262650,3.56986973,89.419,89.371,2.54592874]
[1771138263153,2.24013815,89.39,89.349,2.54592874]
[1771138263344,3.56986973,89.445,89.35,2.24013815]
[1771138263549,3.56986973,89.399,89.349,2.54592874]
[1771138264650,3.56986973,89.399,89.351,2.54592874]
[1771138264847,3.56986973,89.415,89.361,2.54592874]
[1771138265246,3.56986973,89.409,89.361,2.54592874]
[1771138265647,3.56986973,89.399,89.348,2.54592874]
[1771138266045,2.24013815,89.39,89.34,4.78606689]
[1771138266247,2.24013815,89.39,89.341,2.54592874]
[1771138266444,3.56986973,89.399,89.351,2.54592874]
[1771138266647,2.24013815,89.41,89.36,2.24013815]
[1771138266846,3.56986973,89.413,89.361,2.54592874]
[1771138267044,3.56986973,89.413,89.37,2.24013815]
[1771138267457,3.56986973,89.413,89.371,2.54592874]
[1771138267852,1e-08,89.446,89.308,156.814]
[1771138267853,3.56986973,89.429,89.38,4.78606689]
[1771138268054,3.56986973,89.429,89.381,2.54592874]
[1771138269158,2.24013815,89.44,89.39,2.24013815]
[1771138269353,3.56986973,89.444,89.4,2.24013815]
[1771138269555,3.56986973,89.444,89.4,4.78606689]
[1771138271155,3.56986973,89.444,89.39,2.24013815]
[1771138271352,5.81000788,89.44,89.39,2.24013815]
[1771138271557,1e-08,89.446,89.4,2.24013815]
[1771138271859,3.56986974,89.446,89.391,2.54592874]
[1771138272058,2.24013815,89.44,89.391,2.54592874]
[1771138272358,3.56986973,89.439,89.38,2.24013815]
[1771138272855,3.56986973,89.429,89.38,2.24013815]
[1771138277760,3.56986973,89.429,89.375,2.54592874]
[1771138277955,3.56986973,89.429,89.38,2.24013815]
[1771138280558,10.066,89.441,89.385,10.0722]
[1771138280763,3.68721122,89.447,89.401,2.55027531]
[1771138280958,3.68721122,89.439,89.387,2.55027531]
[1771138281858,3.68721122,89.429,89.38,2.24013815]
[1771138282762,3.68721122,89.429,89.373,12.62377531]
[1771138283057,3.68721122,89.429,89.38,2.24013815]
[1771138283659,3.68721122,89.429,89.381,2.55027531]
[1771138284163,3.68721122,89.428,89.38,2.24013815]
[1771138284365,3.68721122,89.428,89.37,2.24013815]
[1771138284559,20.1217,89.487,89.36,2.24013815]
[1771138284560,3.68721122,89.419,89.36,2.24013815]
[1771138285066,3.68721122,89.417,89.37,2.24013815]
[1771138286158,3.68721122,89.415,89.36,4.79041346]
[1771138286857,3.68721122,89.413,89.36,4.79312746]
[1771138289057,3.68721122,89.413,89.361,2.55027531]
[1771138291260,3.68721122,89.431,89.39,4.79312746]
[1771138291466,3.68721122,89.431,89.4,2.24285215]
[1771138291667,3.68721122,89.431,89.38,2.24285215]
[1771138292471,3.68721122,89.427,89.376,2.55027531]
[1771138294467,2.24285215,89.42,89.365,10.0745]
[1771138295664,3.68721122,89.419,89.365,12.62477531]
[1771138295864,2.24285215,89.43,89.381,2.55027531]
[1771138296069,3.68721122,89.434,89.381,2.55027531]
[1771138296768,3.68721122,89.434,89.382,2.55027531]
[1771138297365,3.68721122,89.434,89.39,2.24285215]
[1771138298170,3.68721122,89.434,89.39,4.79312746]
[1771138299976,3.68721122,89.434,89.391,2.55027531]
[1771138300676,3.68721122,89.434,89.38,12.31565215]
[1771138301775,3.68721122,89.429,89.377,2.55027531]
[1771138301973,3.68721122,89.429,89.37,12.31675215]
[1771138301974,3.68721122,89.419,89.37,10.0739]
[1771138302275,3.68721122,89.417,89.363,2.55027531]
[1771138302576,2.24285215,89.41,89.363,2.55027531]
[1771138302777,5.93006337,89.41,89.363,2.55027531]
[1771138302975,3.69883863,89.409,89.363,2.55027531]
[1771138306180,2.24285215,89.42,89.371,2.55641705]
[1771138306479,3.69883863,89.423,89.371,2.55641705]
[1771138306880,3.69883863,89.419,89.38,4.7992692]
[1771138307083,3.69883863,89.433,89.381,2.55641705]
[1771138307975,2.24285215,89.43,89.381,2.55641705]
[1771138308282,3.69883863,89.433,89.381,2.55641705]
[1771138308581,3.69883863,89.433,89.391,2.55641705]
[1771138309084,3.69883863,89.433,89.38,2.24285215]
[1771138309681,3.69883863,89.433,89.38,4.7992692]
[1771138309882,3.69883863,89.433,89.381,10.0726]
[1771138311684,2.24285215,89.43,89.381,10.0726]
[1771138311989,3.69883863,89.429,89.381,10.0726]
[1771138314200,3.69883863,89.429,89.382,2.55641705]
[1771138314400,3.69883863,89.442,89.389,2.55641705]
[1771138314700,3.69883863,89.442,89.39,2.24285215]
[1771138315501,3.69883863,89.442,89.391,2.55641705]
[1771138315798,3.69883863,89.442,89.394,2.55641705]
[1771138316699,3.69883863,89.442,89.397,10.0709]
[1771138320201,3.69883863,89.442,89.405,10.07]
[1771138320399,3.69883863,89.456,89.411,2.55641705]
[1771138321404,3.69883863,89.439,89.39,2.24285215]
[1771138321603,2.24285215,89.43,89.37,4.7992692]
[1771138321805,3.69883863,89.419,89.36,2.24285215]
[1771138322002,3.69883863,89.409,89.358,10.0753]
[1771138322805,3.69883863,89.399,89.342,2.55641705]
[1771138323301,3.69883863,89.399,89.35,2.24285215]
[1771138323501,3.69883863,89.399,89.36,2.24285215]
[1771138323696,3.69883863,89.399,89.289,318.1663]
[1771138323900,3.69883863,89.399,89.287,33.59]
[1771138323901,3.69883863,89.389,89.34,4.7992692]
[1771138324902,3.69883863,89.389,89.35,2.24285215]
[1771138326504,3.69883863,89.389,89.341,2.55641705]
[1771138335109,3.69883863,89.389,89.33,2.24285215]
[1771138335314,2.24285215,89.37,89.328,2.55275402]
[1771138335814,3.83884714,89.379,89.328,2.55275402]
[1771138336912,3.83884714,89.369,89.328,2.55275402]
[1771138337111,3.83884714,89.369,89.321,10.0794]
[1771138337315,3.83884714,89.369,89.315,2.55275402]
[1771138337514,3.83884714,89.359,89.315,2.55275402]
[1771138337712,2.24285215,89.35,89.315,2.55275402]
[1771138337912,3.83884714,89.359,89.315,2.55275402]
[1771138339216,3.83884714,89.349,89.299,2.55275402]
[1771138339616,2.24285215,89.34,89.299,2.55275402]
[1771138341718,2.24285215,89.36,89.31,4.79560617]
[1771138342022,3.83884714,89.359,89.31,2.55275402]
[1771138342320,3.83884714,89.349,89.3,2.24285215]
[1771138342815,3.83884714,89.339,89.296,2.55275402]
[1771138343417,3.83884714,89.339,89.241,298.0]
[1771138343418,3.83884714,89.339,89.277,2.55275402]
[1771138343719,3.83884714,89.339,89.291,2.55275402]
[1771138344421,3.83884714,89.353,89.31,2.24285215]
[1771138345718,3.83884714,89.353,89.301,2.55275402]
[1771138346223,3.83884714,89.349,89.301,2.55275402]
[1771138346421,3.83884714,89.347,89.29,2.24285215]
[1771138346818,2.24285215,89.37,89.32,2.24285215]
[1771138347024,3.83884714,89.369,89.32,2.24506263]
[1771138348127,3.83884714,89.369,89.33,2.24506263]
[1771138348330,3.83884714,89.398,89.34,2.24506263]
[1771138348623,3.83884714,89.389,89.33,2.24506263]
[1771138349219,156.5672,89.45,89.261,1.94823735]
[1771138349220,3.83884714,89.421,89.38,2.24506263]
[1771138349522,3.83884714,89.449,89.41,2.24506263]
[1771138349914,3.83884714,89.449,89.4,4.79781665]
[1771138350114,3.83884714,89.439,89.39,2.24506263]
[1771138350521,2.24506263,89.43,89.38,2.24506263]
[1771138350730,3.83884714,89.429,89.376,10.0733]
[1771138351020,3.83884714,89.429,89.381,2.55275402]
[1771138351221,3.83884714,89.429,89.38,2.24506263]
[1771138351522,3.83884714,89.429,89.37,2.24506263]
[1771138351717,3.83884714,89.419,89.365,2.55275402]
[1771138351911,1.94647202,89.471,89.36,2.24506263]
[1771138351912,3.83884714,89.409,89.36,2.24506263]
[1771138352111,3.83884714,89.409,89.361,2.55275402]
[1771138352315,3.83884714,89.409,89.37,2.24506263]
[1771138352922,3.83884714,89.409,89.361,2.55275402]
[1771138353922,3.83884714,89.426,89.361,2.55275402]
[1771138356423,3.83884714,89.422,89.35,10.0762]
[1771138356829,3.83884714,89.422,89.354,2.55275402]
[1771138357828,3.83884714,89.422,89.359,2.55275402]
[1771138359933,3.83884714,89.422,89.365,2.55275402]
[1771138360732,3.83884714,89.422,89.367,2.55275402]
[1771138366740,3.83884714,89.422,89.368,10.0742]
[1771138367037,3.83884714,89.422,89.369,2.55003151]
[1771138367332,3.82013321,89.453,89.391,2.55003151]
[1771138368839,3.82013321,89.453,89.406,10.0699]
[1771138369239,3.82013321,89.47,89.39,8.55688698]
[1771138369443,3.82013321,89.468,89.395,2.55003151]
[1771138369738,3.82013321,89.468,89.411,2.55003151]
[1771138369943,3.82013321,89.482,89.411,2.55003151]
[1771138370334,3.82013321,89.478,89.424,10.0678]
[1771138370934,3.82013321,89.478,89.428,2.55003151]
[1771138372540,3.82013321,89.478,89.414,2.55003151]
[1771138372838,3.82013321,89.469,89.414,2.55003151]
[1771138373734,3.82013321,89.469,89.42,2.24022386]
[1771138375042,3.82013321,89.469,89.414,2.55003151]
[1771138375741,3.82013321,89.467,89.414,2.55003151]
[1771138376531,3.82013321,89.467,89.354,27.73146714]
[1771138376532,3.82013321,89.467,89.421,2.55003151]
[1771138376932,3.82013321,89.482,89.43,2.24022386]
[1771138378240,2.24022386,89.48,89.43,2.24022386]
[1771138378442,3.82013321,89.479,89.43,2.24022386]
[1771138379640,3.82013321,89.497,89.45,2.24022386]
[1771138380538,3.82013321,89.497,89.384,156.6817]
[1771138380539,3.82013321,89.513,89.464,10.0633]
[1771138380743,3.82013321,89.509,89.46,2.24022386]
[1771138380941,3.82013321,89.509,89.451,2.55003151]
[1771138381142,2.24022386,89.51,89.442,10.0658]
[1771138381143,3.82013321,89.499,89.442,10.0658]
[1771138382748,3.82013321,89.515,89.47,2.24022386]
[1771138383045,13.75515226,89.637,89.416,156.625]
[1771138383046,3.82013321,89.539,89.49,2.24022386]
[1771138383641,3.82013321,89.539,89.417,33.59]
[1771138383642,3.82013321,89.559,89.51,2.24022386]
[1771138383940,3.82013321,89.559,89.52,2.24022386]
[1771138384248,3.82013321,89.549,89.494,2.55003151]
[1771138385036,3.82013321,89.549,89.497,2.55003151]
[1771138387435,3.82013321,89.549,89.485,10.061]
[1771138388043,3.82013321,89.549,89.47,5.98947625]
[1771138388044,3.82013321,89.565,89.491,2.55003151]
[1771138389844,3.82013321,89.565,89.508,12.60833151]
[1771138390042,3.82013321,89.581,89.509,2.55003151]
[1771138390840,3.82013321,89.579,89.511,2.55003151]
[1771138392251,3.82013321,89.579,89.516,2.55003151]
[1771138395153,3.82013321,89.579,89.519,2.5396697]
[1771138395753,3.82013321,89.579,89.473,20.73397672]
[1771138395754,3.82013321,89.579,89.523,2.5396697]
[1771138396960,3.82013321,89.579,89.527,2.5396697]
[1771138398762,3.82013321,89.579,89.511,10.0581]
[1771138398957,3.82013321,89.579,89.511,12.5977697]
[1771138399353,89.08,89.596,89.431,177.33267672]
[1771138399354,3.86240183,89.577,89.5,10.0593]
[1771138400857,3.86240183,89.571,89.5,10.0593]
[1771138401760,3.86240183,89.569,89.5,12.5989697]
[1771138402763,3.86240183,89.569,89.504,2.5396697]
[1771138405061,3.86240183,89.569,89.506,2.5396697]
[1771138405264,10.0503,89.581,89.506,2.5396697]
[1771138405473,3.86240183,89.583,89.506,2.5396697]
[1771138405963,3.86240183,89.583,89.5,5.98947625]
[1771138405964,3.86240183,89.581,89.519,2.5396697]
[1771138407970,3.86240183,89.581,89.521,12.5966697]
[1771138408167,3.86240183,89.577,89.521,2.5396697]
[1771138408764,3.86240183,89.577,89.51,10.0581]
[1771138408970,3.86240183,89.577,89.51,12.5977697]
[1771138409568,3.86240183,89.565,89.51,2.5396697]
[1771138410863,3.86240183,89.562,89.51,2.5396697]
[1771138411268,3.86240183,89.562,89.512,2.5396697]
[1771138413471,3.86240183,89.562,89.518,2.5396697]
[1771138413774,3.86240183,89.562,89.517,10.0573]
[1771138413775,3.86240183,89.612,89.541,2.5396697]
[1771138414362,3.86240183,89.612,89.556,2.5396697]
[1771138414567,3.86240183,89.649,89.556,2.5396697]
[1771138415968,3.86240183,89.629,89.569,12.5911697]
[1771138416172,3.86240183,89.629,89.57,2.5396697]
[1771138416368,3.86240183,89.629,89.572,12.5908697]
[1771138416571,3.86240183,89.629,89.573,2.5396697]
[1771138418880,3.86240183,89.629,89.575,10.0509]
[1771138419374,3.86240183,89.629,89.56,5.98533519]
[1771138419375,3.86240183,89.629,89.58,10.0503]
[1771138419877,3.86240183,89.629,89.56,5.98533519]
[1771138419878,3.86240183,89.646,89.581,2.5396697]
[1771138420470,3.86240183,89.646,89.527,156.432]
[1771138420471,3.86240183,89.646,89.584,2.5396697]
[1771138421776,3.86240183,89.646,89.59,10.0492]
[1771138423169,3.68736123,89.641,89.575,10.0509]
[1771138423569,3.68736123,89.641,89.575,12.58709975]
[1771138423978,3.68736123,89.629,89.549,10.0538]
[1771138424178,3.68736123,89.628,89.549,10.0538]
[1771138424474,3.68736123,89.628,89.55,2.53581652]
[1771138425070,3.68736123,89.626,89.55,2.53581652]
[1771138425269,3.68736123,89.624,89.55,2.53581652]
[1771138425879,3.68736123,89.623,89.556,10.053]
[1771138426871,3.68736123,89.618,89.556,10.053]
[1771138427783,3.68736123,89.616,89.556,10.053]
[1771138429882,3.68736123,89.616,89.557,2.53581652]
[1771138430782,3.68736123,89.616,89.563,10.0521]
[1771138431584,3.68736123,89.631,89.566,2.53581652]
[1771138432180,3.68736123,89.629,89.569,2.53581652]
[1771138432980,3.68736123,89.625,89.569,2.53581652]
[1771138438986,136.06,89.63,89.569,2.53581652]
[1771138438987,3.68736123,89.623,89.569,2.53581652]
[1771138439992,3.68736123,89.618,89.557,10.0528]
[1771138440392,3.68736123,89.618,89.557,12.58861652]
[1771138440590,136.4,89.623,89.562,2.53581652]
[1771138440789,136.4,89.623,89.53,5.98533519]
[1771138440790,3.68736123,89.644,89.57,2.53581652]
[1771138441789,3.68736123,89.644,89.585,2.53581652]
[1771138441991,3.68736123,89.644,89.566,2.53581652]
[1771138442391,3.68736123,89.632,89.566,2.53581652]
[1771138442600,3.68736123,89.63,89.566,2.53581652]
[1771138442894,5.98533519,89.65,89.566,2.53581652]
[1771138442895,3.68736123,89.628,89.566,2.53581652]
[1771138443697,3.68736123,89.628,89.571,2.53581652]
[1771138444293,3.68736123,89.643,89.581,10.0502]
[1771138444492,3.68736123,89.641,89.582,2.53581652]
[1771138444699,3.68736123,89.639,89.556,2.53581652]
[1771138445694,3.68736123,89.624,89.556,2.53581652]
[1771138445895,3.68736123,89.622,89.556,2.53581652]
[1771138446798,3.68736123,89.621,89.556,2.53581652]
[1771138447799,3.68736123,89.619,89.556,2.53581652]
[1771138449000,3.68736123,89.639,89.558,2.53581652]